[Event "Early-Titled-Tuesday-Blitz-March-12-2024"]
[Site "Chess.com"]
[Date "2024.03.12"]
[Round "4"]
[White "margarita_2703"]
[Black "Zq1"]
[Result "0-1"]
[WhiteElo "2401"]
[BlackElo "2562"]
[TimeControl "180+1"]
[EndTime "8:40:35 PDT"]
[Termination "Zq1 won by checkmate"]

1. e4 {[%clk 0:03:00.9]} 1... c5 {[%clk 0:03:00]} 2. Nf3 {[%clk 0:03:00.7]} 2...
d6 {[%clk 0:02:59.4]} 3. d4 {[%clk 0:03:00.7]} 3... cxd4 {[%clk 0:02:59.6]} 4.
Qxd4 {[%clk 0:03:01.6]} 4... a6 {[%clk 0:02:59.1]} 5. Be3 {[%clk 0:03:01.2]}
5... e6 {[%clk 0:02:58]} 6. c4 {[%clk 0:03:00.3]} 6... Be7 {[%clk 0:02:52.5]} 7.
Nc3 {[%clk 0:02:58.1]} 7... Nf6 {[%clk 0:02:52]} 8. h3 {[%clk 0:02:54.8]} 8...
Nbd7 {[%clk 0:02:51.2]} 9. Qd2 {[%clk 0:02:49]} 9... b6 {[%clk 0:02:46.9]} 10.
Nd4 {[%clk 0:02:48.1]} 10... Bb7 {[%clk 0:02:46.8]} 11. Bd3 {[%clk 0:02:46.2]}
11... Nc5 {[%clk 0:02:40.5]} 12. f3 {[%clk 0:02:42.4]} 12... Nxd3+ {[%clk
0:02:40.3]} 13. Qxd3 {[%clk 0:02:43.3]} 13... O-O {[%clk 0:02:39.3]} 14. O-O
{[%clk 0:02:42]} 14... Rc8 {[%clk 0:02:39.2]} 15. Rfd1 {[%clk 0:02:41.4]} 15...
Nd7 {[%clk 0:02:33.5]} 16. Rac1 {[%clk 0:02:39.8]} 16... Ne5 {[%clk 0:02:32.8]}
17. Qe2 {[%clk 0:02:38.8]} 17... Nxc4 {[%clk 0:02:31.7]} 18. b3 {[%clk
0:02:38.1]} 18... Ne5 {[%clk 0:02:26]} 19. Na4 {[%clk 0:02:32]} 19... Nd7 {[%clk
0:02:23.1]} 20. Rxc8 {[%clk 0:02:24.8]} 20... Qxc8 {[%clk 0:02:23.1]} 21. Rc1
{[%clk 0:02:25.1]} 21... Qa8 {[%clk 0:02:15.4]} 22. Rc7 {[%clk 0:02:21.4]} 22...
Rd8 {[%clk 0:02:10.2]} 23. Rxd7 {[%clk 0:02:21.5]} 23... Rxd7 {[%clk 0:02:10.6]}
24. Nxb6 {[%clk 0:02:22.4]} 24... Qd8 {[%clk 0:02:10.4]} 25. Nxd7 {[%clk
0:02:22.3]} 25... Qxd7 {[%clk 0:02:10.8]} 26. Qc2 {[%clk 0:02:21.7]} 26... Bf6
{[%clk 0:02:04.4]} 27. Ne2 {[%clk 0:02:21.3]} 27... d5 {[%clk 0:01:57.5]} 28.
exd5 {[%clk 0:02:20.3]} 28... Bxd5 {[%clk 0:01:53]} 29. Bd4 {[%clk 0:02:20.1]}
29... Bxb3 {[%clk 0:01:36]} 30. Qxb3 {[%clk 0:02:14]} 30... Bxd4+ {[%clk
0:01:34.9]} 31. Nxd4 {[%clk 0:02:14.9]} 31... Qxd4+ {[%clk 0:01:34.2]} 32. Kh1
{[%clk 0:02:13.5]} 32... Qd8 {[%clk 0:01:28.5]} 33. Qc4 {[%clk 0:02:10.2]} 33...
a5 {[%clk 0:01:26.8]} 34. Kg1 {[%clk 0:02:08]} 34... h5 {[%clk 0:01:26.8]} 35.
Kf2 {[%clk 0:02:08.5]} 35... h4 {[%clk 0:01:26.9]} 36. Qa4 {[%clk 0:02:05.1]}
36... g6 {[%clk 0:01:23.3]} 37. Qc4 {[%clk 0:02:00.7]} 37... Kg7 {[%clk
0:01:13.9]} 38. Qc3+ {[%clk 0:01:20.1]} 38... Kh7 {[%clk 0:01:11.5]} 39. Qc4
{[%clk 0:01:19.2]} 39... Qg5 {[%clk 0:00:54.8]} 40. Qc3 {[%clk 0:01:12.3]} 40...
Qg3+ {[%clk 0:00:49]} 41. Kf1 {[%clk 0:01:12.2]} 41... Qg5 {[%clk 0:00:43.7]}
42. Kf2 {[%clk 0:01:10.6]} 42... Qd5 {[%clk 0:00:43.4]} 43. a3 {[%clk
0:01:04.3]} 43... g5 {[%clk 0:00:41.9]} 44. Qf6 {[%clk 0:01:00.4]} 44... Qd2+
{[%clk 0:00:41]} 45. Kf1 {[%clk 0:00:59.9]} 45... Qf4 {[%clk 0:00:40.9]} 46. Qc3
{[%clk 0:00:59.1]} 46... a4 {[%clk 0:00:39]} 47. Kf2 {[%clk 0:00:56.5]} 47...
Kg6 {[%clk 0:00:37.3]} 48. Qd3+ {[%clk 0:00:56.5]} 48... Kf6 {[%clk 0:00:32.7]}
49. Qc3+ {[%clk 0:00:56.2]} 49... e5 {[%clk 0:00:31.8]} 50. Qc6+ {[%clk
0:00:55.6]} 50... Kg7 {[%clk 0:00:30.7]} 51. Kf1 {[%clk 0:00:49.7]} 51... Qd4
{[%clk 0:00:27.6]} 52. Qc1 {[%clk 0:00:44.6]} 52... Kg6 {[%clk 0:00:26.6]} 53.
Qc2+ {[%clk 0:00:44.6]} 53... Kf6 {[%clk 0:00:25.2]} 54. Qc6+ {[%clk 0:00:44.3]}
54... Kg7 {[%clk 0:00:25.3]} 55. Qc2 {[%clk 0:00:44.5]} 55... f6 {[%clk
0:00:25.3]} 56. Qc7+ {[%clk 0:00:40.7]} 56... Kg6 {[%clk 0:00:25]} 57. Qc1
{[%clk 0:00:40.2]} 57... Kf7 {[%clk 0:00:24.6]} 58. Qc7+ {[%clk 0:00:37.3]}
58... Ke6 {[%clk 0:00:24.7]} 59. Qc6+ {[%clk 0:00:36.9]} 59... Kf5 {[%clk
0:00:24.9]} 60. Qc8+ {[%clk 0:00:35.4]} 60... Kf4 {[%clk 0:00:24.7]} 61. Qc1+
{[%clk 0:00:33.5]} 61... Kg3 {[%clk 0:00:24.7]} 62. Qe1+ {[%clk 0:00:31.7]}
62... Kh2 {[%clk 0:00:24.7]} 63. Ke2 {[%clk 0:00:19]} 63... Qb2+ {[%clk
0:00:21.3]} 64. Ke3 {[%clk 0:00:17.3]} 64... Qxg2 {[%clk 0:00:18]} 65. Ke4
{[%clk 0:00:15.2]} 65... Kxh3 {[%clk 0:00:15.2]} 66. Qc3 {[%clk 0:00:12.6]}
66... g4 {[%clk 0:00:13.2]} 67. Qb4 {[%clk 0:00:10]} 67... Qxf3# {[%clk
0:00:13.2]} 0-1

[Event "Early-Titled-Tuesday-Blitz-March-12-2024"]
[Site "Chess.com"]
[Date "2024.03.12"]
[Round "4"]
[White "YegoryoCh"]
[Black "Airquake"]
[Result "0-1"]
[WhiteElo "2491"]
[BlackElo "2657"]
[TimeControl "180+1"]
[EndTime "8:40:36 PDT"]
[Termination "Airquake won by resignation"]

1. e4 {[%clk 0:03:00.9]} 1... c5 {[%clk 0:02:58.9]} 2. Nf3 {[%clk 0:03:01.1]}
2... d6 {[%clk 0:02:58.6]} 3. d4 {[%clk 0:03:01.2]} 3... cxd4 {[%clk 0:02:59.5]}
4. Nxd4 {[%clk 0:03:02.1]} 4... Nf6 {[%clk 0:02:59.4]} 5. Nc3 {[%clk 0:03:02.4]}
5... a6 {[%clk 0:02:59.5]} 6. Nb3 {[%clk 0:03:02.5]} 6... Qc7 {[%clk 0:02:53.1]}
7. Be3 {[%clk 0:02:52.9]} 7... b5 {[%clk 0:02:52.4]} 8. a4 {[%clk 0:02:51.7]}
8... b4 {[%clk 0:02:52.3]} 9. Nd5 {[%clk 0:02:52.3]} 9... Nxd5 {[%clk
0:02:52.5]} 10. exd5 {[%clk 0:02:53.2]} 10... Nd7 {[%clk 0:02:48.9]} 11. Qd2
{[%clk 0:02:45.5]} 11... Bb7 {[%clk 0:02:48.2]} 12. O-O-O {[%clk 0:02:43.1]}
12... Nf6 {[%clk 0:02:47]} 13. Qxb4 {[%clk 0:02:35.5]} 13... Nxd5 {[%clk
0:02:46.7]} 14. Qa5 {[%clk 0:02:18]} 14... Rc8 {[%clk 0:02:46.1]} 15. Qxc7
{[%clk 0:02:14.7]} 15... Rxc7 {[%clk 0:02:47]} 16. Bd2 {[%clk 0:02:06.6]} 16...
g6 {[%clk 0:02:41.8]} 17. Na5 {[%clk 0:02:06.1]} 17... Bc8 {[%clk 0:02:40.8]}
18. Bc4 {[%clk 0:02:03.2]} 18... Nb6 {[%clk 0:02:36.8]} 19. Bc3 {[%clk
0:02:00.4]} 19... Nxc4 {[%clk 0:02:29.8]} 20. Nxc4 {[%clk 0:01:55.6]} 20... f6
{[%clk 0:02:29.1]} 21. Na5 {[%clk 0:01:43.8]} 21... Bd7 {[%clk 0:02:24.2]} 22.
Rhe1 {[%clk 0:01:39.2]} 22... Kf7 {[%clk 0:02:22]} 23. Rd4 {[%clk 0:01:31.1]}
23... e5 {[%clk 0:02:20.6]} 24. Rb4 {[%clk 0:01:30.5]} 24... d5 {[%clk
0:02:18.8]} 25. Rb6 {[%clk 0:01:29.7]} 25... Bxa4 {[%clk 0:01:53.7]} 26. Rxf6+
{[%clk 0:01:26.7]} 26... Kxf6 {[%clk 0:01:44.8]} 27. Bxe5+ {[%clk 0:01:25.9]}
27... Kf7 {[%clk 0:01:45.1]} 28. Bxc7 {[%clk 0:01:19.9]} 28... Bc5 {[%clk
0:01:39.8]} 29. Nb7 {[%clk 0:01:08.4]} 29... Ba7 {[%clk 0:01:17]} 30. Nd6+
{[%clk 0:01:04.9]} 30... Kf6 {[%clk 0:01:13.9]} 31. Nb5 {[%clk 0:00:57.9]} 31...
Bxf2 {[%clk 0:00:56.7]} 32. Be5+ {[%clk 0:00:39.6]} 32... Kg5 {[%clk 0:00:46.9]}
33. Rd1 {[%clk 0:00:18.1]} 33... Re8 {[%clk 0:00:23]} 34. Bd4 {[%clk 0:00:18.4]}
34... Re2 {[%clk 0:00:16.2]} 35. Bxf2 {[%clk 0:00:06.2]} 35... Rxc2+ {[%clk
0:00:15.6]} 36. Kb1 {[%clk 0:00:06.4]} 36... Rxf2 {[%clk 0:00:09.8]} 37. Rxd5+
{[%clk 0:00:06.7]} 37... Kh6 {[%clk 0:00:09.5]} 38. Nc3 {[%clk 0:00:07.2]} 38...
Bc6 {[%clk 0:00:08.5]} 39. Rd6 {[%clk 0:00:07.7]} 39... Bxg2 {[%clk 0:00:07.9]}
40. Rxa6 {[%clk 0:00:07.4]} 40... Bh3 {[%clk 0:00:08.8]} 41. b4 {[%clk
0:00:03.7]} 41... Rxh2 {[%clk 0:00:08.7]} 42. b5 {[%clk 0:00:04.3]} 42... Bf1
{[%clk 0:00:09.1]} 43. Rf6 {[%clk 0:00:03.7]} 43... Bd3+ {[%clk 0:00:08.9]} 44.
Ka1 {[%clk 0:00:04]} 44... Rc2 {[%clk 0:00:08.5]} 45. Rc6 {[%clk 0:00:02.8]}
45... Bxb5 {[%clk 0:00:06.4]} 46. Rc5 {[%clk 0:00:03.4]} 46... Bd3 {[%clk
0:00:06.4]} 47. Rc7 {[%clk 0:00:01.4]} 47... Bf5 {[%clk 0:00:06.5]} 48. Rc5
{[%clk 0:00:01.8]} 48... Kh5 {[%clk 0:00:05.4]} 49. Na4 {[%clk 0:00:01.4]} 49...
Rxc5 {[%clk 0:00:05.3]} 50. Nxc5 {[%clk 0:00:02.3]} 50... Kg4 {[%clk 0:00:06.1]}
51. Kb2 {[%clk 0:00:03.2]} 51... h5 {[%clk 0:00:06.2]} 52. Kc3 {[%clk
0:00:03.9]} 52... h4 {[%clk 0:00:06.9]} 53. Kd2 {[%clk 0:00:04.8]} 53... h3
{[%clk 0:00:07.6]} 54. Ke1 {[%clk 0:00:05.7]} 54... h2 {[%clk 0:00:08.1]} 0-1

[Event "Early-Titled-Tuesday-Blitz-March-12-2024"]
[Site "Chess.com"]
[Date "2024.03.12"]
[Round "4"]
[White "Rikikits"]
[Black "littlepinkyboy"]
[Result "1-0"]
[WhiteElo "2877"]
[BlackElo "2641"]
[TimeControl "180+1"]
[EndTime "8:40:37 PDT"]
[Termination "Rikikits won on time"]

1. d4 {[%clk 0:03:00.9]} 1... d5 {[%clk 0:02:59.1]} 2. c4 {[%clk 0:03:00.8]}
2... c6 {[%clk 0:02:58.7]} 3. Nc3 {[%clk 0:03:01]} 3... Nf6 {[%clk 0:02:58.3]}
4. e3 {[%clk 0:03:01.1]} 4... e6 {[%clk 0:02:58]} 5. b3 {[%clk 0:03:00.3]} 5...
Bb4 {[%clk 0:02:57]} 6. Ne2 {[%clk 0:02:59.9]} 6... O-O {[%clk 0:02:54.5]} 7. a3
{[%clk 0:02:59]} 7... Bd6 {[%clk 0:02:54]} 8. Bb2 {[%clk 0:02:54]} 8... Nbd7
{[%clk 0:02:44.9]} 9. g3 {[%clk 0:02:52.5]} 9... b6 {[%clk 0:02:38.6]} 10. Bg2
{[%clk 0:02:50.5]} 10... Bb7 {[%clk 0:02:39.3]} 11. O-O {[%clk 0:02:48.8]} 11...
Qe7 {[%clk 0:02:39.4]} 12. cxd5 {[%clk 0:02:29.4]} 12... exd5 {[%clk 0:02:22.7]}
13. b4 {[%clk 0:02:23.5]} 13... b5 {[%clk 0:02:11]} 14. Nf4 {[%clk 0:02:04.1]}
14... a5 {[%clk 0:02:09.2]} 15. Nd3 {[%clk 0:01:56.5]} 15... axb4 {[%clk
0:01:56.2]} 16. axb4 {[%clk 0:01:57.4]} 16... Bxb4 {[%clk 0:01:55.6]} 17. Qb3
{[%clk 0:01:57.1]} 17... Bd6 {[%clk 0:01:54.9]} 18. Rfe1 {[%clk 0:01:49.7]}
18... Rxa1 {[%clk 0:01:49.7]} 19. Bxa1 {[%clk 0:01:48]} 19... b4 {[%clk
0:01:41.1]} 20. e4 {[%clk 0:01:11.8]} 20... dxe4 {[%clk 0:01:17]} 21. Nxe4
{[%clk 0:01:12.7]} 21... Nxe4 {[%clk 0:01:16.5]} 22. Bxe4 {[%clk 0:01:10]} 22...
Qg5 {[%clk 0:00:59.1]} 23. Ne5 {[%clk 0:00:56.5]} 23... Nxe5 {[%clk 0:00:43.3]}
24. dxe5 {[%clk 0:00:56.2]} 24... Bc5 {[%clk 0:00:44]} 25. Qc2 {[%clk
0:00:39.4]} 25... Bb6 {[%clk 0:00:19]} 26. Bxh7+ {[%clk 0:00:39.3]} 26... Kh8
{[%clk 0:00:18.3]} 27. Be4 {[%clk 0:00:27.9]} 27... Rd8 {[%clk 0:00:17.9]} 28.
Re2 {[%clk 0:00:20.9]} 28... Bd4 {[%clk 0:00:05.6]} 29. Bxd4 {[%clk 0:00:19.2]}
29... Rxd4 {[%clk 0:00:06.5]} 30. Qc5 {[%clk 0:00:15.5]} 30... Rd8 {[%clk
0:00:03.1]} 31. Qxb4 {[%clk 0:00:15.3]} 31... Ba8 {[%clk 0:00:01.8]} 32. Qc5
{[%clk 0:00:13.6]} 32... Qh5 {[%clk 0:00:01.4]} 33. Re3 {[%clk 0:00:10.1]} 33...
Qh6 {[%clk 0:00:02]} 34. Kg2 {[%clk 0:00:09.9]} 34... Qe6 {[%clk 0:00:02.4]} 35.
Rf3 {[%clk 0:00:09]} 35... Re8 {[%clk 0:00:02.7]} 36. Rf5 {[%clk 0:00:08.2]}
36... g6 {[%clk 0:00:03.1]} 37. Rg5 {[%clk 0:00:06.7]} 37... Qe7 {[%clk
0:00:02.5]} 38. Qxe7 {[%clk 0:00:06.5]} 38... Rxe7 {[%clk 0:00:03.4]} 39. f4
{[%clk 0:00:06.8]} 39... Bb7 {[%clk 0:00:03.7]} 40. Bf3 {[%clk 0:00:06.8]} 40...
c5 {[%clk 0:00:03.7]} 41. Bxb7 {[%clk 0:00:07]} 41... Rxb7 {[%clk 0:00:04.2]}
42. Kf3 {[%clk 0:00:07.6]} 42... c4 {[%clk 0:00:02.3]} 43. Ke3 {[%clk
0:00:07.9]} 43... Rd7 {[%clk 0:00:02.6]} 44. e6 {[%clk 0:00:07.8]} 44... fxe6
{[%clk 0:00:02.6]} 45. Rc5 {[%clk 0:00:05.6]} 45... Rd3+ {[%clk 0:00:02.4]} 46.
Ke4 {[%clk 0:00:05.6]} 46... Rd2 {[%clk 0:00:03.1]} 47. h4 {[%clk 0:00:05.5]}
47... Re2+ {[%clk 0:00:02.9]} 48. Kf3 {[%clk 0:00:05.7]} 48... Rc2 {[%clk
0:00:03.6]} 49. Rc6 {[%clk 0:00:05.6]} 49... c3 {[%clk 0:00:03.9]} 50. Rxe6
{[%clk 0:00:05.8]} 50... Kg7 {[%clk 0:00:03]} 51. Rc6 {[%clk 0:00:06.2]} 51...
Rc1 {[%clk 0:00:03]} 52. Kg4 {[%clk 0:00:06.8]} 52... c2 {[%clk 0:00:02.3]} 53.
Rc4 {[%clk 0:00:06.5]} 53... Kf6 {[%clk 0:00:02.2]} 54. Rc7 {[%clk 0:00:06.6]}
1-0

[Event "Early-Titled-Tuesday-Blitz-March-12-2024"]
[Site "Chess.com"]
[Date "2024.03.12"]
[Round "4"]
[White "theoneandonlydaaevik"]
[Black "JosephRyan"]
[Result "1-0"]
[WhiteElo "2506"]
[BlackElo "2195"]
[TimeControl "180+1"]
[EndTime "8:40:38 PDT"]
[Termination "theoneandonlydaaevik won by resignation"]

1. c4 {[%clk 0:03:00.9]} 1... e6 {[%clk 0:02:54.5]} 2. Nf3 {[%clk 0:03:00]} 2...
d5 {[%clk 0:02:54.4]} 3. g3 {[%clk 0:03:00]} 3... Nf6 {[%clk 0:02:53.7]} 4. Bg2
{[%clk 0:03:00.3]} 4... Be7 {[%clk 0:02:54]} 5. O-O {[%clk 0:03:00.4]} 5... O-O
{[%clk 0:02:51.2]} 6. b3 {[%clk 0:03:00.3]} 6... a5 {[%clk 0:02:50.7]} 7. Nc3
{[%clk 0:02:41.9]} 7... d4 {[%clk 0:02:48.6]} 8. Nb5 {[%clk 0:02:42]} 8... Nc6
{[%clk 0:02:47.3]} 9. Bb2 {[%clk 0:02:41.5]} 9... e5 {[%clk 0:02:44]} 10. d3
{[%clk 0:02:37.7]} 10... Re8 {[%clk 0:02:33.5]} 11. h3 {[%clk 0:02:29.6]} 11...
Bf8 {[%clk 0:02:29.5]} 12. Kh2 {[%clk 0:02:27.7]} 12... h6 {[%clk 0:02:11.9]}
13. a3 {[%clk 0:02:10.9]} 13... Bf5 {[%clk 0:02:10.9]} 14. Nd2 {[%clk 0:02:03]}
14... e4 {[%clk 0:02:04.7]} 15. dxe4 {[%clk 0:02:00.3]} 15... Nxe4 {[%clk
0:02:04.5]} 16. Nxe4 {[%clk 0:02:00.8]} 16... Bxe4 {[%clk 0:02:04.6]} 17. Nxd4
{[%clk 0:01:57.3]} 17... Bxg2 {[%clk 0:02:03.2]} 18. Kxg2 {[%clk 0:01:58.2]}
18... Nxd4 {[%clk 0:01:56.2]} 19. Bxd4 {[%clk 0:01:57.7]} 19... c5 {[%clk
0:01:41.5]} 20. Be3 {[%clk 0:01:52.6]} 20... Qc7 {[%clk 0:01:39]} 21. Qd5 {[%clk
0:01:46.2]} 21... Rad8 {[%clk 0:01:38.4]} 22. Qf3 {[%clk 0:01:46.9]} 22... a4
{[%clk 0:01:37.6]} 23. bxa4 {[%clk 0:01:43.9]} 23... b6 {[%clk 0:01:27.2]} 24.
Rab1 {[%clk 0:01:34]} 24... Ra8 {[%clk 0:01:24.1]} 25. Bf4 {[%clk 0:01:33.4]}
25... Qd7 {[%clk 0:01:22.3]} 26. Rxb6 {[%clk 0:01:32.2]} 26... Qxa4 {[%clk
0:01:18.7]} 27. Rb7 {[%clk 0:01:22.7]} 27... Qxc4 {[%clk 0:01:02.2]} 28. Rb2
{[%clk 0:00:39.1]} 28... Qe4 {[%clk 0:00:57.9]} 29. Ra1 {[%clk 0:00:29.6]} 29...
c4 {[%clk 0:00:48.2]} 30. Qxe4 {[%clk 0:00:21]} 30... Rxe4 {[%clk 0:00:47.4]}
31. a4 {[%clk 0:00:21.4]} 31... c3 {[%clk 0:00:44.2]} 32. Rc2 {[%clk 0:00:21.7]}
32... Rexa4 {[%clk 0:00:35.6]} 33. Rxa4 {[%clk 0:00:21.2]} 33... Rxa4 {[%clk
0:00:36.5]} 34. Rxc3 {[%clk 0:00:22.1]} 34... Ra2 {[%clk 0:00:21.2]} 35. Rc8
{[%clk 0:00:21.7]} 35... Ra6 {[%clk 0:00:19.3]} 36. Be3 {[%clk 0:00:18.8]} 36...
g5 {[%clk 0:00:18.2]} 37. Bc5 {[%clk 0:00:18.7]} 37... Kg7 {[%clk 0:00:17]} 38.
Bxf8+ {[%clk 0:00:18.7]} 38... Kg6 {[%clk 0:00:17.9]} 39. Bc5 {[%clk 0:00:16.5]}
39... Ra2 {[%clk 0:00:17.5]} 40. e4 {[%clk 0:00:15]} 40... h5 {[%clk 0:00:17]}
41. Rc6+ {[%clk 0:00:15.1]} 41... Kg7 {[%clk 0:00:16.7]} 42. Bd4+ {[%clk
0:00:15.5]} 42... Kh7 {[%clk 0:00:16.4]} 43. Rc5 {[%clk 0:00:11.4]} 43... Kg6
{[%clk 0:00:15.4]} 44. h4 {[%clk 0:00:11.8]} 44... g4 {[%clk 0:00:14.3]} 45.
Rg5+ {[%clk 0:00:11.4]} 45... Kh6 {[%clk 0:00:13.7]} 46. Bg7+ {[%clk 0:00:12]}
46... Kh7 {[%clk 0:00:13.7]} 47. Bf8 {[%clk 0:00:12.6]} 47... Ra8 {[%clk
0:00:05.9]} 48. Rxh5+ {[%clk 0:00:11.6]} 48... Kg6 {[%clk 0:00:06]} 49. Rg5+
{[%clk 0:00:12]} 49... Kf6 {[%clk 0:00:06.6]} 50. Bg7+ {[%clk 0:00:12.1]} 50...
Ke6 {[%clk 0:00:06.3]} 51. h5 {[%clk 0:00:12.7]} 51... f5 {[%clk 0:00:06.3]} 52.
exf5+ {[%clk 0:00:12.4]} 52... Kf7 {[%clk 0:00:07.2]} 53. h6 {[%clk 0:00:13.1]}
53... Rg8 {[%clk 0:00:06]} 54. Rxg4 {[%clk 0:00:08.3]} 54... Rxg7 {[%clk
0:00:06.9]} 55. hxg7 {[%clk 0:00:07.1]} 55... Kg8 {[%clk 0:00:07]} 56. f6 {[%clk
0:00:07.6]} 56... Kf7 {[%clk 0:00:07.5]} 57. g8=Q+ {[%clk 0:00:08.3]} 1-0

[Event "Early-Titled-Tuesday-Blitz-March-12-2024"]
[Site "Chess.com"]
[Date "2024.03.12"]
[Round "4"]
[White "Viktoker"]
[Black "mikheeva86"]
[Result "1-0"]
[WhiteElo "2505"]
[BlackElo "2171"]
[TimeControl "180+1"]
[EndTime "8:40:39 PDT"]
[Termination "Viktoker won on time"]

1. d4 {[%clk 0:03:00.9]} 1... d5 {[%clk 0:02:59.9]} 2. c4 {[%clk 0:03:00.7]}
2... e6 {[%clk 0:02:59.6]} 3. Nc3 {[%clk 0:02:59.4]} 3... Nf6 {[%clk 0:02:59.9]}
4. cxd5 {[%clk 0:02:59.2]} 4... exd5 {[%clk 0:02:59.5]} 5. Bg5 {[%clk
0:02:59.8]} 5... Be7 {[%clk 0:02:58.6]} 6. e3 {[%clk 0:03:00]} 6... Bg4 {[%clk
0:02:57.8]} 7. Qc2 {[%clk 0:02:53.9]} 7... h6 {[%clk 0:02:56]} 8. Bh4 {[%clk
0:02:46.1]} 8... Nbd7 {[%clk 0:02:40.7]} 9. Bd3 {[%clk 0:02:38.7]} 9... c5
{[%clk 0:02:37.8]} 10. h3 {[%clk 0:02:23]} 10... cxd4 {[%clk 0:02:27.5]} 11.
exd4 {[%clk 0:02:10.6]} 11... Be6 {[%clk 0:02:25.9]} 12. Nf3 {[%clk 0:02:08.1]}
12... O-O {[%clk 0:02:25]} 13. O-O {[%clk 0:02:07.4]} 13... Rc8 {[%clk
0:02:23.2]} 14. Rfe1 {[%clk 0:02:00.5]} 14... Nb6 {[%clk 0:02:19.9]} 15. Ne5
{[%clk 0:01:55.5]} 15... Nc4 {[%clk 0:01:57.4]} 16. Rad1 {[%clk 0:01:37.6]}
16... Qa5 {[%clk 0:01:50.5]} 17. Bxc4 {[%clk 0:01:22.6]} 17... dxc4 {[%clk
0:01:43.8]} 18. d5 {[%clk 0:01:13.5]} 18... Nxd5 {[%clk 0:01:43.2]} 19. Rxd5
{[%clk 0:01:10.7]} 19... Bxd5 {[%clk 0:01:43.4]} 20. Bxe7 {[%clk 0:01:10.6]}
20... Rfe8 {[%clk 0:01:43.5]} 21. Bh4 {[%clk 0:00:28.3]} 21... Bxg2 {[%clk
0:01:36.6]} 22. Kxg2 {[%clk 0:00:25.9]} 22... Rxe5 {[%clk 0:01:36]} 23. Rxe5
{[%clk 0:00:24.3]} 23... Qxe5 {[%clk 0:01:35.2]} 24. Bg3 {[%clk 0:00:24.9]}
24... Qe6 {[%clk 0:01:33.5]} 25. Qe4 {[%clk 0:00:21.2]} 25... Qb6 {[%clk
0:01:26.3]} 26. Nd5 {[%clk 0:00:18.7]} 26... Qxb2 {[%clk 0:01:08.7]} 27. Ne7+
{[%clk 0:00:18.9]} 27... Kh8 {[%clk 0:01:07.4]} 28. Nxc8 {[%clk 0:00:19.3]}
28... c3 {[%clk 0:01:07.1]} 29. Nd6 {[%clk 0:00:16]} 29... c2 {[%clk 0:01:04.7]}
30. Nxf7+ {[%clk 0:00:15.8]} 30... Kg8 {[%clk 0:01:04.9]} 31. Qe8+ {[%clk
0:00:11]} 31... Kh7 {[%clk 0:01:04.6]} 32. Qe4+ {[%clk 0:00:09.6]} 32... Kg8
{[%clk 0:01:03.7]} 33. Nxh6+ {[%clk 0:00:07.5]} 33... gxh6 {[%clk 0:01:03.5]}
34. Qg6+ {[%clk 0:00:07.8]} 34... Kh8 {[%clk 0:00:59.4]} 35. Qxh6+ {[%clk
0:00:08]} 35... Kg8 {[%clk 0:00:59.4]} 36. Bf4 {[%clk 0:00:07.1]} 36... Kf7
{[%clk 0:00:53.8]} 37. Qh7+ {[%clk 0:00:05.9]} 37... Ke6 {[%clk 0:00:53.6]} 38.
Qe4+ {[%clk 0:00:05.9]} 38... Kd7 {[%clk 0:00:49.6]} 39. Qd5+ {[%clk 0:00:05.3]}
39... Ke8 {[%clk 0:00:38]} 40. Qe6+ {[%clk 0:00:04.5]} 40... Kd8 {[%clk
0:00:34.9]} 41. Qd6+ {[%clk 0:00:04.7]} 41... Ke8 {[%clk 0:00:34.9]} 42. Qe6+
{[%clk 0:00:03.3]} 42... Kd8 {[%clk 0:00:28.9]} 43. Qd5+ {[%clk 0:00:03.7]}
43... Ke8 {[%clk 0:00:28.1]} 44. Qe4+ {[%clk 0:00:04.1]} 44... Kd7 {[%clk
0:00:27.5]} 45. Qe3 {[%clk 0:00:05]} 45... Qxa2 {[%clk 0:00:23]} 46. h4 {[%clk
0:00:05.2]} 46... a5 {[%clk 0:00:20.1]} 47. Qc5 {[%clk 0:00:04.9]} 47... a4
{[%clk 0:00:19.8]} 48. Qd6+ {[%clk 0:00:05.1]} 48... Ke8 {[%clk 0:00:19.4]} 49.
Bg5 {[%clk 0:00:05.7]} 49... Kf7 {[%clk 0:00:19.2]} 50. Qf6+ {[%clk 0:00:05.7]}
50... Kg8 {[%clk 0:00:18.5]} 51. Qd8+ {[%clk 0:00:06.2]} 51... Kf7 {[%clk
0:00:18]} 52. Qe7+ {[%clk 0:00:06.6]} 52... Kg6 {[%clk 0:00:17.5]} 53. Qf6+
{[%clk 0:00:06.2]} 53... Kh7 {[%clk 0:00:09.5]} 54. Qf5+ {[%clk 0:00:06.5]}
54... Kg7 {[%clk 0:00:08.8]} 55. h5 {[%clk 0:00:06.9]} 55... Qb3 {[%clk
0:00:03.4]} 56. h6+ {[%clk 0:00:07.2]} 1-0